fUST/lending_fUST_20241123
["ID","MTS","AMOUNT","RATE_DAILY","PERIOD"]
[343115160,1732366260150,-882.37,0.00022465,2]
[343115161,1732366260160,-500.0,0.00022465,2]
[343115162,1732366260170,-1056.35,0.00022465,2]
[343115163,1732366260181,-872.19,0.00022465,2]
[343115164,1732366260191,-500.0,0.00022465,2]
[343115165,1732366260201,-500.0,0.00022465,2]
[343115166,1732366260214,-1217.38,0.00022465,2]
[343115167,1732366260224,-576.84,0.00022465,2]
[343115168,1732366260236,-7473.65,0.00022465,2]
[343115169,1732366260247,-500.0,0.00022465,2]
[343115170,1732366260257,-590.73,0.00022465,2]
[343115171,1732366260272,-674.66,0.00022465,2]
[343115172,1732366260282,-500.0,0.00022465,2]
[343115173,1732366260292,-538.85,0.00022465,2]
[343115174,1732366260303,-605.75,0.00022465,2]
[343115175,1732366260315,-850.07,0.00022465,2]
[343115176,1732366260325,-1816.65,0.00022465,2]
[343115177,1732366260335,-13459.67,0.00022465,2]
[343115178,1732366260345,-882.91,0.00022465,2]
[343115179,1732366260355,-500.0,0.00022465,2]
[343115180,1732366260365,-5328.25,0.00022465,2]
[343115181,1732366260374,-700.55,0.00022465,2]
[343115182,1732366260384,-738.33,0.00022465,2]
[343115183,1732366260393,-575.52,0.00022465,2]
[343115184,1732366260403,-4056.23,0.00022465,2]
[343115185,1732366260413,-546.44,0.00022465,2]
[343115186,1732366260422,-1127.26,0.00022465,2]
[343115187,1732366260432,-500.0,0.00022465,2]
[343115188,1732366260442,-716.22,0.00022465,2]
[343115189,1732366260453,-889.01,0.00022465,2]
[343115190,1732366260466,-1129.2,0.00022465,2]
[343115191,1732366260476,-610.25775938,0.00022484,2]
[343115192,1732366260487,-5093.93594,0.00022496,2]
[343115193,1732366260497,-500.0,0.00022739,2]
[343115194,1732366260508,-560.5,0.00022739,2]
[343115195,1732366260518,-500.0,0.00022739,2]
[343115196,1732366260527,-500.0,0.00022739,2]
[343115197,1732366260537,-500.0,0.00022739,2]
[343115198,1732366260546,-607.85,0.00022739,2]
[343115199,1732366260556,-1635.9,0.00022739,2]
[343115200,1732366260566,-526.37,0.00022739,2]
[343115201,1732366260577,-500.0,0.00022739,2]
[343115202,1732366260586,-500.0,0.00022739,2]
[343115203,1732366260596,-748.76,0.00022739,2]
[343115204,1732366260606,-578.27,0.00022739,2]
[343115205,1732366260615,-799.01,0.00022739,2]
[343115206,1732366260625,-660.9,0.00022739,2]
[343115207,1732366260634,-500.0,0.00022739,2]
[343115208,1732366260644,-1095.13,0.00022739,2]
[343115209,1732366260653,-339.90504921,0.00022739,2]
[343115210,1732366260663,-660.43,0.00022739,2]
[343115211,1732366260673,-744.79,0.00022739,2]
[343115212,1732366260682,-602.21,0.00022739,2]
[343115213,1732366260692,-2349.5,0.00022739,2]
[343115214,1732366260701,-2006.5,0.00022739,2]
[343115215,1732366260714,-1551.55,0.00022739,2]
[343115216,1732366260724,-500.0,0.00022739,2]
[343115217,1732366260733,-1039.57,0.00022739,2]
[343115218,1732366260743,-1747.31,0.00022739,2]
[343115219,1732366260752,-1202.85,0.00022739,2]
[343115220,1732366260763,-1000.07,0.00022739,2]
[343115221,1732366260772,-686.29,0.00022739,2]
[343115222,1732366260782,-1081.0,0.00022739,2]
[343115223,1732366260794,-1439.48,0.00022739,2]
[343115224,1732366260806,-604.53,0.00022739,2]
[343115225,1732366260820,-1113.01,0.00022739,2]
[343115226,1732366260830,-500.0,0.00022739,2]
[343115227,1732366260842,-910.06,0.00022739,2]
[343115228,1732366260853,-500.0,0.00022739,2]
[343115229,1732366260863,-500.0,0.00022739,2]
[343115230,1732366260873,-1063.52,0.00022739,2]
[343115231,1732366260884,-1125.44,0.00022739,2]
[343115232,1732366260895,-999.35,0.00022739,2]
[343115233,1732366260906,-522.08,0.00022739,2]
[343115234,1732366260916,-1708.58,0.00022739,2]
[343115235,1732366260927,-1059.27,0.00022739,2]
[343115236,1732366260938,-552.4,0.00022739,2]
[343115237,1732366260948,-719.88,0.00022739,2]
[343115238,1732366260959,-615.14,0.00022739,2]
[343115239,1732366260969,-500.0,0.00022739,2]
[343115240,1732366260979,-1102.89,0.00022739,2]
[343115241,1732366260989,-581.08,0.00022739,2]
[343115242,1732366260999,-1792.59,0.00022739,2]
[343115243,1732366261010,-677.62,0.00022739,2]
[343115244,1732366261020,-3879.56,0.00022739,2]
[343115245,1732366261030,-663.99,0.00022739,2]
[343115246,1732366261040,-500.0,0.00022739,2]
[343115247,1732366261049,-577.21,0.00022739,2]
[343115248,1732366261058,-500.0,0.00022739,2]
[343115249,1732366261068,-833.58,0.00022739,2]
[343115250,1732366261078,-1516.41,0.00022739,2]
[343115251,1732366261088,-500.0,0.00022739,2]
[343115252,1732366261097,-1060.44,0.00022739,2]
[343115253,1732366261108,-500.0,0.00022739,2]
[343115254,1732366261117,-638.51,0.00022739,2]
[343115255,1732366261127,-885.71,0.00022739,2]
[343115256,1732366261137,-500.0,0.00022739,2]
[343115257,1732366261146,-500.0,0.00022739,2]
[343115258,1732366261156,-500.0,0.00022739,2]
[343115259,1732366261166,-516.19,0.00022739,2]
[343115260,1732366261175,-593.45,0.00022739,2]
[343115261,1732366261185,-1282.52,0.00022739,2]
[343115262,1732366261195,-887.97,0.00022739,2]
[343115263,1732366261204,-500.0,0.00022739,2]
[343115264,1732366261218,-2300.61,0.00022739,2]
[343115265,1732366261228,-528.07,0.00022739,2]
[343115266,1732366261238,-1538.6,0.00022739,2]
[343115267,1732366261248,-1008.44,0.00022739,2]
[343115268,1732366261257,-636.89,0.00022739,2]
[343115270,1732366261267,-500.0,0.00022739,2]
[343115271,1732366261277,-5925.46654188,0.00022739,2]
[343115272,1732366261397,-3212.2,0.00022739,2]
[343115273,1732366261409,-22862.62345812,0.00022739,2]
[343115274,1732366261419,-672.04,0.00022739,2]
[343115275,1732366261429,-534.97,0.00022739,2]
[343115276,1732366261438,-626.8,0.00022739,2]
[343115277,1732366261447,-500.0,0.00022739,2]
[343115278,1732366261456,-635.09,0.00022739,2]
[343115279,1732366261468,-706.69,0.00022739,2]
[343115280,1732366261478,-500.0,0.00022739,2]
[343115281,1732366261487,-610.43652765,0.00022739,2]
[343115282,1732366261497,-1255.4,0.00022739,10]
[343115283,1732366261506,-1504.44,0.00022739,2]
[343115284,1732366261515,-4470.66,0.00022739,2]
[343115285,1732366261524,-1264.94,0.00022739,2]
[343115286,1732366261534,-200.0,0.00022739,2]
[343115287,1732366261543,-597.49,0.00022739,2]
[343115288,1732366261552,-830.37,0.00022739,2]
[343115289,1732366261562,-2510.69,0.00022739,2]
[343115290,1732366261571,-500.0,0.00022739,2]
[343115291,1732366261580,-1529.76,0.00022739,2]
[343115292,1732366261590,-500.0,0.00022739,2]
[343115293,1732366261599,-500.0,0.00022739,2]
[343115294,1732366261608,-950.08,0.00022739,2]
[343115295,1732366261617,-2119.31,0.00022739,2]
[343115296,1732366261627,-618.96,0.00022739,2]
[343115297,1732366261636,-882.37,0.00022739,2]
[343115298,1732366261645,-500.0,0.00022739,2]
[343115299,1732366261655,-1056.35,0.00022739,2]
[343115300,1732366261665,-872.19,0.00022739,2]
[343115301,1732366261674,-500.0,0.00022739,2]
[343115302,1732366261684,-500.0,0.00022739,2]
[343115303,1732366261693,-1217.38,0.00022739,2]
[343115304,1732366261703,-576.84,0.00022739,2]
[343115305,1732366261717,-7473.65,0.00022739,2]
[343115306,1732366261727,-500.0,0.00022739,2]
[343115307,1732366261737,-590.73,0.00022739,2]
[343115308,1732366261747,-674.66,0.00022739,2]
[343115309,1732366261757,-500.0,0.00022739,2]
[343115310,1732366261767,-538.85,0.00022739,2]
[343115311,1732366261776,-605.75,0.00022739,2]
[343115312,1732366261786,-850.07,0.00022739,2]
[343115313,1732366261798,-1816.65,0.00022739,2]
[343115314,1732366261808,-13459.67,0.00022739,2]
[343115315,1732366261819,-882.91,0.00022739,2]
[343115316,1732366261828,-500.0,0.00022739,2]
[343115317,1732366261838,-5328.25,0.00022739,2]
[343115318,1732366261848,-700.55,0.00022739,2]
[343115319,1732366261857,-738.33,0.00022739,2]
[343115320,1732366261867,-575.52,0.00022739,2]
[343115321,1732366261877,-4056.23,0.00022739,2]
[343115322,1732366261886,-546.44,0.00022739,2]
[343115323,1732366261896,-1127.26,0.00022739,2]
[343115324,1732366261905,-500.0,0.00022739,2]
[343115325,1732366261915,-716.22,0.00022739,2]
[343115326,1732366261925,-889.01,0.00022739,2]
[343115327,1732366261934,-1129.2,0.00022739,2]
[343115328,1732366261943,-937.35968453,0.00022777,7]
[343115329,1732366261953,-5093.93594,0.00022777,2]
[343115330,1732366261965,-2000.0,0.0002282,2]
[343115331,1732366261974,-151.01846765,0.00022879,2]
[343115332,1732366261984,-65661.39539755,0.000229,7]
[343115333,1732366262087,-408.8778615,0.00020821,2]
[343115334,1732366262099,-91.1221385,0.00020821,2]
[343115335,1732366262109,-500.0,0.00021095,2]
[343115336,1732366262119,-500.0,0.00021369,2]
[343115337,1732366262129,-500.0,0.00021643,2]
[343115338,1732366262138,-500.0,0.00021917,2]
[343115339,1732366262148,-500.0,0.00022191,2]
[343115340,1732366262159,-500.0,0.00022465,2]
[343115341,1732366262169,-500.0,0.00022739,2]
[343115342,1732366262179,-94981.02815731,0.000229,7]
[343115343,1732366262191,-2457.31346598,0.000229,7]
[343115344,1732366262258,-6798.11897725,0.000229,7]
[343115345,1732366262298,-49294.58734003,0.000229,7]
[343115346,1732366262322,-6470.25578599,0.000229,7]
[343115347,1732366262334,-817.260001,0.000229,7]
[343115348,1732366262345,-403.28366005,0.000229,7]
[343115349,1732366262391,-23116.75721484,0.000229,7]
[343115350,1732366262401,-191.225099,0.000229,7]
[343115351,1732366262410,-191.225099,0.000229,7]
[343115352,1732366262421,-284.69884607,0.00022987,2]
[343115353,1732366262431,-242.56526486,0.00023,2]
[343115354,1732366262441,-448.0,0.00023,2]
[343115355,1732366262450,-160.0,0.00023,2]
[343115356,1732366262462,-202.0,0.00023,2]
[343115357,1732366262471,-200.0,0.00023,2]
[343115358,1732366262481,-494.70911141,0.00023012,2]
[343115359,1732366262490,-500.0,0.00023013,2]
[343115360,1732366262500,-560.5,0.00023013,2]
[343115361,1732366262510,-500.0,0.00023013,2]
[343115362,1732366262520,-500.0,0.00023013,2]
[343115363,1732366262531,-607.85,0.00023013,2]
[343115364,1732366262541,-1635.9,0.00023013,2]
[343115365,1732366262551,-526.37,0.00023013,2]
[343115366,1732366262561,-500.0,0.00023013,2]
[343115367,1732366262571,-500.0,0.00023013,2]
[343115368,1732366262581,-748.76,0.00023013,2]
[343115369,1732366262592,-578.27,0.00023013,2]
[343115370,1732366262602,-799.01,0.00023013,2]
[343115371,1732366262612,-660.9,0.00023013,2]
[343115372,1732366262622,-500.0,0.00023013,2]
[343115373,1732366262631,-1095.13,0.00023013,2]
[343115374,1732366262641,-660.43,0.00023013,2]
[343115375,1732366262652,-744.79,0.00023013,2]
[343115376,1732366262662,-602.21,0.00023013,2]
[343115377,1732366262672,-2349.5,0.00023013,2]
[343115378,1732366262685,-2006.5,0.00023013,2]
[343115379,1732366262696,-1551.55,0.00023013,2]
[343115380,1732366262706,-500.0,0.00023013,2]
[343115381,1732366262719,-1039.57,0.00023013,2]
[343115382,1732366262729,-1747.31,0.00023013,2]
[343115383,1732366262738,-1202.85,0.00023013,2]
[343115384,1732366262749,-1000.07,0.00023013,2]
[343115385,1732366262759,-686.29,0.00023013,2]
[343115386,1732366262769,-1081.0,0.00023013,2]
[343115387,1732366262779,-1439.48,0.00023013,2]
[343115388,1732366262790,-604.53,0.00023013,2]
[343115389,1732366262800,-1113.01,0.00023013,2]
[343115390,1732366262814,-506.0242921,0.00023013,2]
[343115391,1732366262824,-910.06,0.00023013,2]
[343115392,1732366262835,-500.0,0.00023013,2]
[343115393,1732366262845,-500.0,0.00023013,2]
[343115394,1732366262858,-1063.52,0.00023013,2]
[343115395,1732366262868,-1125.44,0.00023013,2]
[343115396,1732366262878,-999.35,0.00023013,2]
[343115397,1732366262890,-522.08,0.00023013,2]
[343115398,1732366262900,-1708.58,0.00023013,2]
[343115399,1732366262911,-1059.27,0.00023013,2]
[343115400,1732366262921,-552.4,0.00023013,2]
[343115401,1732366263074,-719.88,0.00023013,2]
[343115402,1732366263084,-615.14,0.00023013,2]
[343115403,1732366263094,-500.0,0.00023013,2]
[343115404,1732366263104,-1102.89,0.00023013,2]
[343115405,1732366263114,-581.08,0.00023013,2]
[343115406,1732366263124,-1792.59,0.00023013,2]
[343115407,1732366263133,-677.62,0.00023013,2]
[343115408,1732366263144,-3879.56,0.00023013,2]
[343115409,1732366263154,-663.99,0.00023013,2]
[343115410,1732366263163,-312.5427108,0.00023013,2]
[343115411,1732366263172,-577.21,0.00023013,2]
[343115412,1732366263182,-500.0,0.00023013,2]
[343115413,1732366263192,-833.58,0.00023013,2]
[343115414,1732366263202,-1516.41,0.00023013,2]
[343115415,1732366263215,-500.0,0.00023013,2]
[343115416,1732366263225,-1060.44,0.00023013,2]
[343115417,1732366263235,-500.0,0.00023013,2]
[343115418,1732366263246,-638.51,0.00023013,2]
[343115419,1732366263256,-885.71,0.00023013,2]
[343115420,1732366263266,-500.0,0.00023013,2]
[343115421,1732366263276,-500.0,0.00023013,2]
[343115422,1732366263286,-500.0,0.00023013,2]
[343115423,1732366263296,-516.19,0.00023013,2]
[343115424,1732366263306,-593.45,0.00023013,2]
[343115425,1732366263316,-1282.52,0.00023013,2]
[343115426,1732366263326,-887.97,0.00023013,2]
[343115427,1732366263336,-500.0,0.00023013,2]
[343115428,1732366263345,-2300.61,0.00023013,2]
[343115429,1732366263355,-528.07,0.00023013,2]
[343115430,1732366263365,-1538.6,0.00023013,2]
[343115431,1732366263375,-1008.44,0.00023013,2]
[343115432,1732366263385,-636.89,0.00023013,2]
[343115433,1732366263395,-500.0,0.00023013,2]
[343115434,1732366263405,-32000.29,0.00023013,2]
[343115435,1732366263415,-672.04,0.00023013,2]
[343115436,1732366263425,-534.97,0.00023013,2]
[343115437,1732366263436,-626.8,0.00023013,2]
[343115438,1732366263446,-500.0,0.00023013,2]
[343115439,1732366263455,-635.09,0.00023013,2]
[343115440,1732366263470,-706.69,0.00023013,2]
[343115441,1732366263480,-500.0,0.00023013,2]
[343115442,1732366263490,-1255.4,0.00023013,10]
[343115443,1732366263501,-1504.44,0.00023013,2]
[343115444,1732366263511,-4470.66,0.00023013,2]
[343115445,1732366263521,-1264.94,0.00023013,2]
[343115446,1732366263531,-200.0,0.00023013,2]
[343115447,1732366263541,-597.49,0.00023013,2]
[343115448,1732366263551,-830.37,0.00023013,2]
[343115449,1732366263562,-2510.69,0.00023013,2]
[343115450,1732366263572,-172.74230675,0.00023013,2]
[343115451,1732366263582,-1529.76,0.00023013,2]
[343115452,1732366263592,-500.0,0.00023013,2]
[343115453,1732366263603,-500.0,0.00023013,2]
[343115454,1732366263612,-950.08,0.00023013,2]
[343115455,1732366263622,-2119.31,0.00023013,2]
[343115456,1732366263633,-618.96,0.00023013,2]
[343115457,1732366263643,-882.37,0.00023013,2]
[343115458,1732366263653,-500.0,0.00023013,2]
[343115459,1732366263663,-1056.35,0.00023013,2]
[343115460,1732366263673,-872.19,0.00023013,2]
[343115461,1732366263683,-500.0,0.00023013,2]
[343115462,1732366263694,-276.74989448,0.00023013,2]
[343115463,1732366263704,-1217.38,0.00023013,2]
[343115464,1732366263719,-576.84,0.00023013,2]
[343115465,1732366263730,-7473.65,0.00023013,2]
[343115466,1732366263740,-500.0,0.00023013,2]
[343115467,1732366263751,-590.73,0.00023013,2]
[343115468,1732366263762,-674.66,0.00023013,2]
[343115469,1732366263773,-500.0,0.00023013,2]
[343115470,1732366263782,-538.85,0.00023013,2]
[343115471,1732366263795,-605.75,0.00023013,2]
[343115472,1732366263807,-850.07,0.00023013,2]
[343115473,1732366263818,-1816.65,0.00023013,2]
[343115474,1732366263829,-13459.67,0.00023013,2]
[343115475,1732366263841,-882.91,0.00023013,2]
[343115476,1732366263851,-500.0,0.00023013,2]
[343115477,1732366263860,-5328.25,0.00023013,2]
[343115478,1732366263872,-700.55,0.00023013,2]
[343115479,1732366263883,-738.33,0.00023013,2]
[343115480,1732366263893,-575.52,0.00023013,2]
[343115481,1732366263904,-4056.23,0.00023013,2]
[343115482,1732366263914,-546.44,0.00023013,2]
[343115483,1732366263925,-1127.26,0.00023013,2]
[343115484,1732366263936,-500.0,0.00023013,2]
[343115485,1732366263947,-716.22,0.00023013,2]
[343115486,1732366263957,-889.01,0.00023013,2]
[343115487,1732366263970,-1129.2,0.00023013,2]
[343115488,1732366263980,-500.0,0.00023013,2]
[343115489,1732366263991,-5093.93594,0.00023058,2]
[343115490,1732366264001,-263.11,0.00023098,2]
[343115491,1732366264011,-405.51543236,0.000232,2]
[343115492,1732366264021,-1000.0,0.000232,2]
[343115493,1732366264031,-500.0,0.00023287,2]
[343115494,1732366264041,-560.5,0.00023287,2]
[343115495,1732366264051,-500.0,0.00023287,2]
[343115496,1732366264061,-500.0,0.00023287,2]
[343115497,1732366264071,-607.85,0.00023287,2]
[343115498,1732366264081,-1635.9,0.00023287,2]
[343115499,1732366264092,-526.37,0.00023287,2]
[343115500,1732366264103,-500.0,0.00023287,2]
[343115501,1732366264113,-500.0,0.00023287,2]
[343115502,1732366264123,-748.76,0.00023287,2]
[343115503,1732366264133,-578.27,0.00023287,2]
[343115504,1732366264143,-799.01,0.00023287,2]
[343115505,1732366264153,-660.9,0.00023287,2]
[343115506,1732366264163,-500.0,0.00023287,2]
[343115507,1732366264173,-1095.13,0.00023287,2]
[343115508,1732366264182,-660.43,0.00023287,2]
[343115509,1732366264192,-744.79,0.00023287,2]
[343115510,1732366264202,-602.21,0.00023287,2]
[343115511,1732366264214,-2349.5,0.00023287,2]
[343115512,1732366264224,-2006.5,0.00023287,2]
[343115513,1732366264234,-1551.55,0.00023287,2]
[343115514,1732366264243,-640.17641142,0.00023287,2]
[343115515,1732366264254,-1039.57,0.00023287,2]
[343115516,1732366264264,-1747.31,0.00023287,2]
[343115517,1732366264274,-1202.85,0.00023287,2]
[343115518,1732366264284,-1000.07,0.00023287,2]
[343115519,1732366264294,-686.29,0.00023287,2]
[343115520,1732366264303,-1081.0,0.00023287,2]
[343115521,1732366264313,-1439.48,0.00023287,2]
[343115522,1732366264323,-604.53,0.00023287,2]
[343115523,1732366264333,-1113.01,0.00023287,2]
[343115524,1732366264343,-910.06,0.00023287,2]
[343115525,1732366264352,-500.0,0.00023287,2]
[343115526,1732366264361,-500.0,0.00023287,2]
[343115527,1732366264371,-1063.52,0.00023287,2]
[343115528,1732366264381,-1125.44,0.00023287,2]
[343115529,1732366264391,-999.35,0.00023287,2]
[343115530,1732366264400,-522.08,0.00023287,2]
[343115531,1732366264410,-1708.58,0.00023287,2]
[343115532,1732366264420,-1059.27,0.00023287,2]
[343115533,1732366264430,-552.4,0.00023287,2]
[343115534,1732366264440,-719.88,0.00023287,2]
[343115535,1732366264449,-615.14,0.00023287,2]
[343115536,1732366264462,-500.0,0.00023287,2]
[343115537,1732366264472,-1102.89,0.00023287,2]
[343115538,1732366264481,-581.08,0.00023287,2]
[343115539,1732366264491,-1792.59,0.00023287,2]
[343115540,1732366264500,-677.62,0.00023287,2]
[343115541,1732366264510,-3879.56,0.00023287,2]
[343115542,1732366264520,-663.99,0.00023287,2]
[343115543,1732366264529,-577.21,0.00023287,2]
[343115544,1732366264540,-500.0,0.00023287,2]
[343115545,1732366264549,-833.58,0.00023287,2]
[343115546,1732366264562,-1516.41,0.00023287,2]
[343115547,1732366264576,-638.58536681,0.00023287,2]
[343115548,1732366264591,-1060.44,0.00023287,2]
[343115549,1732366264606,-500.0,0.00023287,2]
[343115550,1732366264617,-638.51,0.00023287,2]
[343115551,1732366264631,-885.71,0.00023287,2]
[343115552,1732366264643,-500.0,0.00023287,2]
[343115553,1732366264657,-405.46571899,0.00023287,2]
[343115554,1732366264670,-500.0,0.00023287,2]
[343115555,1732366264683,-516.19,0.00023287,2]
[343115556,1732366264698,-593.45,0.00023287,2]
[343115557,1732366264716,-1282.52,0.00023287,2]
[343115558,1732366264730,-887.97,0.00023287,2]
[343115559,1732366264743,-500.0,0.00023287,2]
[343115560,1732366264755,-2300.61,0.00023287,2]
[343115561,1732366264769,-528.07,0.00023287,2]
[343115562,1732366264783,-1538.6,0.00023287,2]
[343115563,1732366264796,-1008.44,0.00023287,2]
[343115564,1732366264810,-636.89,0.00023287,2]
[343115565,1732366264823,-500.0,0.00023287,2]
[343115566,1732366264837,-32000.29,0.00023287,2]
[343115567,1732366264851,-672.04,0.00023287,2]
[343115568,1732366264865,-534.97,0.00023287,2]
[343115569,1732366264879,-626.8,0.00023287,2]
[343115570,1732366264893,-500.0,0.00023287,2]
[343115571,1732366264907,-635.09,0.00023287,2]
[343115572,1732366264921,-706.69,0.00023287,2]
[343115573,1732366264932,-500.0,0.00023287,2]
[343115574,1732366264942,-1255.4,0.00023287,10]
[343115575,1732366264955,-1504.44,0.00023287,2]
[343115576,1732366264972,-4470.66,0.00023287,2]
[343115577,1732366264986,-1264.94,0.00023287,2]
[343115578,1732366264998,-200.0,0.00023287,2]
[343115579,1732366265009,-597.49,0.00023287,2]
[343115580,1732366265021,-830.37,0.00023287,2]
[343115581,1732366265033,-2510.69,0.00023287,2]
[343115582,1732366265046,-1529.76,0.00023287,2]
[343115583,1732366265057,-500.0,0.00023287,2]
[343115584,1732366265068,-602.72370931,0.00023287,2]
[343115585,1732366265080,-950.08,0.00023287,2]
[343115586,1732366265091,-2119.31,0.00023287,2]
[343115587,1732366265102,-618.96,0.00023287,2]
[343115588,1732366265113,-882.37,0.00023287,2]
[343115589,1732366265125,-500.0,0.00023287,2]
[343115590,1732366265137,-1056.35,0.00023287,2]
[343115591,1732366265149,-872.19,0.00023287,2]
[343115592,1732366265161,-500.0,0.00023287,2]
[343115593,1732366265173,-1217.38,0.00023287,2]
[343115594,1732366265184,-576.84,0.00023287,2]
[343115595,1732366265197,-7473.65,0.00023287,2]
[343115596,1732366265211,-500.0,0.00023287,2]
[343115597,1732366265223,-590.73,0.00023287,2]
[343115598,1732366265235,-674.66,0.00023287,2]
[343115599,1732366265247,-255.83782822,0.00023287,2]
[343115600,1732366265259,-538.85,0.00023287,2]
[343115601,1732366265271,-605.75,0.00023287,2]
[343115602,1732366265283,-850.07,0.00023287,2]
[343115603,1732366265295,-1816.65,0.00023287,2]
[343115604,1732366265307,-13459.67,0.00023287,2]
[343115605,1732366265318,-882.91,0.00023287,2]
[343115606,1732366265330,-500.0,0.00023287,2]
[343115607,1732366265342,-5328.25,0.00023287,2]
[343115608,1732366265354,-700.55,0.00023287,2]
[343115609,1732366265366,-738.33,0.00023287,2]
[343115610,1732366265378,-575.52,0.00023287,2]
[343115611,1732366265389,-4056.23,0.00023287,2]
[343115612,1732366265402,-546.44,0.00023287,2]
[343115613,1732366265413,-1127.26,0.00023287,2]
[343115614,1732366265423,-500.0,0.00023287,2]
[343115615,1732366265433,-716.22,0.00023287,2]
[343115616,1732366265442,-889.01,0.00023287,2]
[343115617,1732366265451,-1129.2,0.00023287,2]
[343115618,1732366265463,-500.0,0.00023287,2]
[343115619,1732366265473,-448.0,0.00023288,2]
[343115620,1732366265483,-500.05079406,0.00023288,2]
[343115621,1732366265493,-188.78591782,0.00023288,2]
[343115622,1732366265502,-5093.93594,0.0002334,2]
[343115623,1732366265511,-610.25775938,0.00023437,2]
[343115624,1732366265521,-500.0,0.00023561,2]
[343115625,1732366265530,-560.5,0.00023561,2]
[343115626,1732366265539,-229.08259129,0.00023561,2]
[343115627,1732366265549,-500.0,0.00023561,2]
[343115628,1732366265558,-607.85,0.00023561,2]
[343115629,1732366265567,-1635.9,0.00023561,2]
[343115630,1732366265577,-526.37,0.00023561,2]
[343115631,1732366265587,-500.0,0.00023561,2]
[343115632,1732366265596,-500.0,0.00023561,2]
[343115633,1732366265606,-748.76,0.00023561,2]
[343115634,1732366265616,-578.27,0.00023561,2]
[343115635,1732366265626,-799.01,0.00023561,2]
[343115636,1732366265635,-660.9,0.00023561,2]
[343115637,1732366265644,-500.0,0.00023561,2]
[343115638,1732366265654,-1095.13,0.00023561,2]
[343115639,1732366265663,-660.43,0.00023561,2]
[343115640,1732366265672,-744.79,0.00023561,2]
[343115641,1732366265683,-602.21,0.00023561,2]
[343115642,1732366265692,-2349.5,0.00023561,2]
[343115643,1732366265702,-2006.5,0.00023561,2]
[343115644,1732366265712,-1551.55,0.00023561,2]
[343115645,1732366265721,-1039.57,0.00023561,2]
[343115646,1732366265732,-1747.31,0.00023561,2]
[343115647,1732366265741,-1202.85,0.00023561,2]
[343115648,1732366265751,-1000.07,0.00023561,2]
[343115649,1732366265761,-686.29,0.00023561,2]
[343115650,1732366265770,-1081.0,0.00023561,2]
[343115651,1732366265780,-1439.48,0.00023561,2]
[343115652,1732366265791,-604.53,0.00023561,2]
[343115653,1732366265805,-1113.01,0.00023561,2]
[343115654,1732366265815,-910.06,0.00023561,2]
[343115655,1732366265825,-500.0,0.00023561,2]
[343115656,1732366265835,-565.32578159,0.00023561,2]
[343115657,1732366265846,-1063.52,0.00023561,2]
[343115658,1732366265856,-1125.44,0.00023561,2]
[343115659,1732366265866,-999.35,0.00023561,2]
[343115660,1732366265876,-522.08,0.00023561,2]